bitfinex/quotes_BTCUSD_20250730
["timestamp","ask_amount","ask_price","bid_price","bid_amount"]
[1753885430271,0.01544967,118170.0,118160.0,1.27480964]
[1753885434905,0.01544967,118170.0,118160.0,0.55205378]
[1753885435209,0.01544967,118170.0,118160.0,1.27480964]
[1753885439277,0.00014545,118170.0,118160.0,1.27480964]
[1753885448785,0.00014545,118170.0,118160.0,0.91335186]
[1753885449018,0.00014545,118170.0,118160.0,0.76590581]
[1753885449261,0.00034545,118170.0,118160.0,0.44023931]
[1753885449498,0.1922682,118170.0,118160.0,0.0844773]
[1753885449714,0.55364613,118170.0,118160.0,0.21199654]
[1753885450156,0.56210801,118170.0,118160.0,0.08147654]
[1753885450383,0.56210801,118170.0,118160.0,0.21199654]
[1753885450384,0.58710801,118170.0,118160.0,0.21199654]
[1753885450606,0.5955701,118170.0,118160.0,0.08147654]
[1753885450838,0.025,118150.0,118130.0,0.18619565]
[1753885451058,0.025,118150.0,118140.0,0.2149973]
[1753885451275,0.025,118150.0,118140.0,0.0844773]
[1753885451276,0.42307793,118150.0,118140.0,0.0844773]
[1753885451505,0.4987111,118150.0,118140.0,0.0844773]
[1753885451778,0.49024793,118150.0,118140.0,0.0844773]
[1753885452012,0.50636031,118150.0,118140.0,0.0844773]
[1753885452228,0.025,118130.0,118120.0,0.05182]
[1753885452454,0.50346031,118130.0,118120.0,0.0844773]
[1753885453142,0.52846031,118130.0,118100.0,0.36311015]
[1753885453342,0.025,118120.0,118110.0,0.38433073]
[1753885453560,0.02711,118120.0,118110.0,0.4362962]
[1753885453783,0.02711,118120.0,118110.0,0.3078162]
[1753885453994,0.02711,118120.0,118110.0,0.3057762]
[1753885454401,0.02711,118120.0,118110.0,0.31424288]
[1753885454655,0.02711,118120.0,118110.0,0.68326651]
[1753885454863,0.02711,118120.0,118110.0,0.69173319]
[1753885455073,0.02711,118120.0,118110.0,0.70223965]
[1753885455282,0.02711,118120.0,118110.0,0.70523965]
[1753885455740,0.40249031,118120.0,118110.0,0.34468191]
[1753885455947,0.40249031,118120.0,118110.0,0.34468198]
[1753885456160,0.40249031,118120.0,118110.0,0.31928288]
[1753885456385,0.40249031,118120.0,118110.0,0.3148162]
[1753885456604,0.41606854,118120.0,118110.0,0.33174949]
[1753885456826,0.41606854,118120.0,118110.0,0.32328288]
[1753885457038,0.41606854,118120.0,118110.0,0.33174942]
[1753885457268,0.41606854,118120.0,118110.0,0.34021588]
[1753885457920,0.41817854,118120.0,118110.0,0.3148162]
[1753885458411,0.41817854,118120.0,118110.0,0.25795644]
[1753885458412,0.45127854,118120.0,118110.0,0.25795644]
[1753885458627,0.41817854,118120.0,118110.0,0.30977644]
[1753885458845,0.41817854,118120.0,118110.0,0.32328312]
[1753885459063,0.41817854,118120.0,118110.0,0.31481644]
[1753885459289,0.41817854,118120.0,118110.0,0.32328312]
[1753885459848,0.41817854,118120.0,118110.0,0.25795644]
[1753885460056,0.45137854,118120.0,118110.0,0.25795644]
[1753885460306,0.51393854,118120.0,118110.0,0.25795644]
[1753885460751,0.47637854,118120.0,118110.0,0.25795644]
[1753885461285,0.44317854,118120.0,118110.0,0.32874973]
[1753885461523,0.39317854,118120.0,118110.0,0.14548277]
[1753885461740,0.54423854,118120.0,118110.0,0.08862277]
[1753885461998,0.55270393,118120.0,118110.0,0.00414547]
[1753885462231,0.683264,118120.0,118110.0,0.00414547]
[1753885462455,0.69172968,118120.0,118110.0,0.00414547]
[1753885462677,0.69172968,118120.0,118110.0,0.00014547]
[1753885462907,0.67479854,118120.0,118110.0,0.00114547]
[1753885463164,0.54423854,118120.0,118110.0,0.17147914]
[1753885463411,0.67479854,118120.0,118110.0,0.17147914]
[1753885464130,0.63723854,118120.0,118110.0,0.22329914]
[1753885464568,0.61223854,118120.0,118110.0,0.22329914]
[1753885464771,0.63723854,118120.0,118110.0,0.17147914]
[1753885465234,0.63723854,118120.0,118110.0,0.00214547]
[1753885465463,0.66971854,118120.0,118110.0,0.00214547]
[1753885465691,0.67479854,118120.0,118110.0,0.00214547]
[1753885466378,0.833264,118120.0,118110.0,0.00114547]
[1753885466585,1.386158,118120.0,118110.0,0.00114547]
[1753885466809,1.20837271,118120.0,118110.0,0.00114547]
[1753885467093,1.37769204,118120.0,118110.0,0.00114547]
[1753885467329,1.45370402,118120.0,118110.0,0.00114547]
[1753885468215,1.47855915,118120.0,118110.0,0.00114547]
[1753885468459,1.46159838,118120.0,118110.0,0.00014547]
[1753885468668,1.46259838,118120.0,118110.0,0.00014547]
[1753885469114,1.46253838,118120.0,118110.0,0.00014547]
[1753885469578,1.46253674,118120.0,118110.0,0.00014547]
[1753885469794,1.46353674,118120.0,118110.0,0.00014547]
[1753885470208,1.48098576,118120.0,118110.0,0.00014547]
[1753885470404,1.50584089,118120.0,118110.0,0.00014547]
[1753885470605,1.65975702,118120.0,118110.0,0.00014547]
[1753885471055,1.52919702,118120.0,118110.0,0.00014547]
[1753885471263,1.63690412,118120.0,118110.0,0.00014547]
[1753885472370,1.69282322,118120.0,118110.0,0.00014547]
[1753885472581,1.77730052,118120.0,118110.0,0.00014547]
[1753885473014,1.69282322,118120.0,118110.0,0.00014547]
[1753885473541,1.70860791,118120.0,118110.0,0.00014547]
[1753885473753,6.6781426,118120.0,118110.0,0.00014547]
[1753885474429,6.6771426,118120.0,118110.0,0.00014547]
[1753885474649,6.6791426,118120.0,118110.0,0.00014547]
[1753885474857,6.7636199,118120.0,118110.0,0.00014547]
[1753885475078,6.7626199,118120.0,118110.0,0.00014547]
[1753885475526,6.81038929,118120.0,118110.0,0.00014547]
[1753885476182,0.00846962,118060.0,118050.0,0.0641]
[1753885476404,0.58514707,118060.0,118050.0,0.08693259]
[1753885476682,0.81073034,118060.0,118050.0,0.00245529]
[1753885476941,0.64335489,118060.0,118050.0,0.13011529]
[1753885477158,0.62641458,118060.0,118050.0,0.13011529]
[1753885477366,0.64132475,118060.0,118050.0,0.13011529]
[1753885477584,0.63285456,118060.0,118050.0,0.13011529]
[1753885477846,0.61014693,118060.0,118050.0,0.13011529]
[1753885478074,0.62438781,118060.0,118050.0,0.13011529]
[1753885478289,0.44566759,118060.0,118050.0,0.13011529]
[1753885478548,0.57626759,118060.0,118050.0,0.13011529]
[1753885478767,0.57626759,118060.0,118050.0,0.13411529]
[1753885478987,0.61591937,118060.0,118050.0,0.13011529]
[1753885479234,0.6159193,118060.0,118050.0,0.13011529]
[1753885479425,0.62381846,118060.0,118050.0,0.13611529]
[1753885479644,0.60110613,118060.0,118050.0,0.13611529]
[1753885480071,0.63229326,118060.0,118050.0,0.13611529]
[1753885480279,0.60110606,118060.0,118050.0,0.13611529]
[1753885480504,0.60688615,118060.0,118050.0,0.13611529]
[1753885480935,0.64078273,118060.0,118050.0,0.13611529]
[1753885481145,0.64925271,118060.0,118050.0,0.13611529]
[1753885481367,0.62856324,118060.0,118050.0,0.13611529]
[1753885481571,0.79078808,118060.0,118050.0,0.13294529]
[1753885481786,0.62601825,118060.0,118050.0,0.13294529]
[1753885481992,0.62601825,118060.0,118050.0,0.13611529]
[1753885482204,0.63448816,118060.0,118050.0,0.13611529]
[1753885482673,0.62601825,118060.0,118050.0,0.13611529]
[1753885482883,0.61754849,118060.0,118050.0,0.13611529]
[1753885483102,0.64671056,118060.0,118050.0,0.13611529]
[1753885483313,0.63824094,118060.0,118050.0,0.13611529]
[1753885483967,0.61551849,118060.0,118050.0,0.13611529]
[1753885485053,0.64670739,118060.0,118050.0,0.13611529]
[1753885485490,0.63823763,118060.0,118050.0,0.13611529]
[1753885485698,0.51610725,118060.0,118050.0,0.13611529]
[1753885485916,0.63823763,118060.0,118050.0,0.13611529]
[1753885487007,0.61551849,118060.0,118050.0,0.13611529]
[1753885487440,0.63979596,118060.0,118050.0,0.13611529]
[1753885487642,0.63132627,118060.0,118050.0,0.13611529]
[1753885487866,0.64182596,118060.0,118050.0,0.13611529]
[1753885488099,0.64182522,118060.0,118050.0,0.13611529]
[1753885488360,0.65029505,118060.0,118050.0,0.13611529]
[1753885488601,0.64182522,118060.0,118050.0,0.13611529]
[1753885489021,0.65029505,118060.0,118050.0,0.13611529]
[1753885489705,0.96054067,118060.0,118050.0,0.00648529]
[1753885489928,1.02971029,118060.0,118050.0,0.00648529]
[1753885490151,1.00699115,118060.0,118050.0,0.00648529]
[1753885490373,0.86877467,118060.0,118050.0,0.00648529]
[1753885490590,0.94578417,118060.0,118050.0,0.00648529]
[1753885490811,0.94578417,118060.0,118050.0,0.00348529]
[1753885491035,1.11519019,118060.0,118050.0,0.00348529]
[1753885491530,1.11519019,118060.0,118050.0,0.00048529]
[1753885492202,1.11519019,118060.0,118050.0,0.00148529]
[1753885492431,1.11520227,118060.0,118050.0,0.00148529]
[1753885493131,0.93732663,118060.0,118050.0,0.00348529]
[1753885493348,1.11520227,118060.0,118050.0,0.00348529]
[1753885493595,1.10972244,118060.0,118050.0,0.00348529]
[1753885493874,1.55164876,118060.0,118050.0,0.00348529]
[1753885494116,1.75378475,118060.0,118050.0,0.00348529]
[1753885494376,6.80468346,118060.0,118050.0,0.00348529]
[1753885494618,6.80468346,118060.0,118050.0,0.00148529]
[1753885494619,6.75920646,118060.0,118050.0,0.00148529]
[1753885495060,6.75920646,118060.0,118050.0,0.00248529]
[1753885495061,6.72892962,118060.0,118050.0,0.00248529]
[1753885495317,6.96340692,118060.0,118050.0,0.00148529]
[1753885495566,6.99368376,118060.0,118050.0,0.00148529]
[1753885495804,6.86308376,118060.0,118050.0,0.00148529]
[1753885496054,6.9634111,118060.0,118050.0,0.00148529]
[1753885496263,6.8789738,118060.0,118050.0,0.00148529]
[1753885496772,6.8789738,118060.0,118050.0,0.00048529]
[1753885497453,1.7503338,118060.0,118050.0,0.00048529]
[1753885497763,1.5310138,118060.0,118050.0,0.00048529]
[1753885497855,1.5280238,118060.0,118050.0,0.00048529]
[1753885498355,1.52055375,118060.0,118050.0,0.00048529]
[1753885499041,1.52352375,118060.0,118050.0,0.00048529]
[1753885500187,1.49852375,118060.0,118050.0,0.00048529]
[1753885500405,1.3733438,118060.0,118050.0,0.00048529]
[1753885500635,1.44454636,118060.0,118050.0,0.12040529]
[1753885501088,1.47001336,118060.0,118050.0,0.00048529]
[1753885501348,1.47298336,118060.0,118050.0,0.00048529]
[1753885501846,1.47298336,118060.0,118050.0,0.36001502]
[1753885501847,0.58373915,118060.0,118050.0,0.36001502]
[1753885502076,0.318782,118060.0,118050.0,0.36001502]
[1753885502353,0.7132117,118060.0,118050.0,0.19059529]
[1753885502618,0.7229939,118060.0,118050.0,0.19059529]
[1753885502854,0.6963521,118060.0,118050.0,0.368486]
[1753885503075,0.5395521,118060.0,118050.0,0.3854276]
[1753885503311,0.53955404,118060.0,118050.0,0.38542768]
[1753885503557,0.61796722,118060.0,118050.0,0.47190498]
[1753885503805,0.10963691,118060.0,118050.0,0.48884587]
[1753885504071,0.40712722,118060.0,118050.0,0.48984587]
[1753885504311,0.31047691,118060.0,118050.0,0.48984587]
[1753885504541,0.17963691,118060.0,118050.0,0.48984587]
[1753885504782,0.54132088,118060.0,118050.0,0.44749232]
[1753885505024,0.58268742,118060.0,118050.0,0.27807259]
[1753885505263,0.69780784,118060.0,118050.0,0.44749232]
[1753885505521,0.69780784,118060.0,118050.0,0.44649232]
[1753885505766,0.69780784,118060.0,118050.0,0.44449232]
[1753885506001,0.69780784,118060.0,118050.0,0.44469232]
[1753885506753,0.69780784,118060.0,118050.0,0.27827259]
[1753885507019,0.76601021,118060.0,118050.0,0.13179529]
[1753885507257,1.25371478,118060.0,118050.0,0.00668529]
[1753885507503,1.31511478,118060.0,118050.0,0.00668529]
[1753885507759,1.39959208,118060.0,118050.0,0.00668529]
[1753885507992,1.43008723,118060.0,118050.0,0.00068529]
[1753885508260,1.39959208,118060.0,118050.0,0.00068529]
[1753885508519,1.39959208,118060.0,118050.0,0.00168529]
[1753885509313,0.99653481,118060.0,118050.0,0.00168529]
[1753885509633,1.47967208,118060.0,118050.0,0.00168529]
[1753885509874,1.47967208,118060.0,118050.0,0.00068529]
[1753885510626,1.48067208,118060.0,118050.0,0.00068529]
[1753885510892,1.48068631,118060.0,118050.0,0.00068529]
[1753885511429,0.058474,118000.0,117990.0,0.0659]
[1753885511698,0.7618876,118000.0,117990.0,0.03483]
[1753885511964,0.76782526,118000.0,117990.0,0.12511]
[1753885512240,0.60680931,118000.0,117990.0,0.12511]
[1753885512500,0.5729121,118000.0,117990.0,0.19141]
[1753885512754,0.57346885,118000.0,117990.0,0.19155553]
[1753885513063,0.59041706,118000.0,117990.0,0.19155553]
[1753885513288,0.57600519,118000.0,117990.0,0.19155553]
[1753885513512,0.60680484,118000.0,117990.0,0.19155553]
[1753885513737,0.59239433,118000.0,117990.0,0.19155553]
[1753885514212,0.57488708,118000.0,117990.0,0.19155553]
[1753885514430,0.58336108,118000.0,117990.0,0.19155553]
[1753885514649,0.56753127,118000.0,117990.0,0.19155553]
[1753885514897,0.76244593,118000.0,117990.0,0.12525553]
[1753885515127,0.58447984,118000.0,117990.0,0.12525553]
[1753885515350,0.75397136,118000.0,117990.0,0.12525553]
[1753885515567,0.77827936,118000.0,117990.0,0.12825553]
[1753885515793,0.80335747,118000.0,117990.0,0.12825553]
[1753885516031,0.78837926,118000.0,117990.0,0.12519553]
[1753885516301,0.92694341,118000.0,117990.0,0.00314553]
[1753885516522,0.92694634,118000.0,117990.0,0.00314553]
[1753885516749,0.93486452,118000.0,117990.0,0.00314553]
[1753885516993,0.64902213,118000.0,117990.0,0.12519553]
[1753885517213,0.65552641,118000.0,117990.0,0.12825553]
[1753885517429,0.61426771,118000.0,117990.0,0.36016142]
[1753885517663,0.07229226,118000.0,117990.0,0.35716142]
[1753885517905,0.76972158,118000.0,117990.0,0.00227553]
[1753885518142,0.88607158,118000.0,117990.0,0.00214553]
[1753885518360,0.90135536,118000.0,117990.0,0.00214553]
[1753885518578,0.80788767,118000.0,117990.0,0.00514553]
[1753885518797,0.85414121,118000.0,117990.0,0.00514553]
[1753885519240,0.86007932,118000.0,117990.0,0.00714553]
[1753885519878,1.62366686,118000.0,117990.0,0.00714553]
[1753885520105,1.73904416,118000.0,117990.0,0.00714553]
[1753885520543,1.33000689,118000.0,117990.0,0.00714553]
[1753885520834,1.32703689,118000.0,117990.0,0.00714553]
[1753885521078,1.32703689,118000.0,117990.0,0.00514553]
[1753885521322,1.32703689,118000.0,117990.0,0.00014553]
[1753885521552,1.348826,118000.0,117990.0,0.00114553]
[1753885521791,1.351796,118000.0,117990.0,0.00214553]
[1753885522525,1.348826,118000.0,117990.0,0.00214553]
[1753885522965,1.76043327,118000.0,117990.0,0.00214553]
[1753885523431,1.382296,118000.0,117990.0,0.00214553]
[1753885523867,1.38229056,118000.0,117990.0,0.00214553]
[1753885524300,1.35853942,118000.0,117990.0,0.00214553]
[1753885524512,1.3822759,118000.0,117990.0,0.00214553]
[1753885525630,1.3488059,118000.0,117990.0,0.00214553]
[1753885528108,1.2324559,118000.0,117990.0,0.13026553]
[1753885528332,1.2324559,118000.0,117990.0,0.12702553]
[1753885528846,1.2324559,118000.0,117990.0,0.00411553]
[1753885529062,0.81963363,118000.0,117990.0,0.13026553]
[1753885529274,0.97593641,118000.0,117990.0,0.19376553]
[1753885529533,0.44149636,118000.0,117990.0,0.19376553]
[1753885529750,0.6189877,118000.0,117990.0,0.19376553]
[1753885530181,0.45463363,118000.0,117990.0,0.36327142]
[1753885530433,0.58552238,118000.0,117990.0,0.45622401]
[1753885530649,0.45460238,118000.0,117990.0,0.44774872]
[1753885531285,0.44075211,118000.0,117990.0,0.27824283]
[1753885531497,0.44865292,118000.0,117990.0,0.27824283]
[1753885531722,0.44075211,118000.0,117990.0,0.27724283]
[1753885531932,0.44075211,118000.0,117990.0,0.44674872]
[1753885532387,0.4486529,118000.0,117990.0,0.44774872]
[1753885532606,0.45457939,118000.0,117990.0,0.44774872]
[1753885533029,0.44863246,118000.0,117990.0,0.46469923]
[1753885533246,0.58543998,118000.0,117990.0,0.46469923]
[1753885533461,0.58543999,118000.0,117990.0,0.46469923]
[1753885533692,0.4525382,118000.0,117990.0,0.4731743]
[1753885533905,0.0684734,118000.0,117990.0,0.46469923]
[1753885534116,0.44661067,118000.0,117990.0,0.47317438]
[1753885534360,0.45254161,118000.0,117990.0,0.47317423]
[1753885534596,0.45254161,118000.0,117990.0,0.48164902]
[1753885534597,0.42754161,118000.0,117990.0,0.48164902]
[1753885534813,0.397906,118000.0,117990.0,0.48164902]
[1753885535028,0.422906,118000.0,117990.0,0.4731743]
[1753885535247,0.05268238,118000.0,117990.0,0.4731743]
[1753885535467,0.422906,118000.0,117990.0,0.46469923]
[1753885535727,0.40313727,118000.0,117990.0,0.48164931]
[1753885535958,0.26105573,118000.0,117990.0,0.4901241]
[1753885536396,0.2848184,118000.0,117990.0,0.49012431]
[1753885536625,0.2848184,118000.0,117990.0,0.48164945]
[1753885536847,0.2848184,118000.0,117990.0,0.49012395]
[1753885537072,0.02376267,118000.0,117990.0,0.49012388]
[1753885537319,0.02970797,118000.0,117990.0,0.49012388]
[1753885537564,0.00792089,118000.0,117990.0,0.49012388]
[1753885537799,0.50893727,118020.0,118010.0,0.23187716]
[1753885538028,0.53866172,118020.0,118010.0,0.24232101]
[1753885538253,0.40786172,118020.0,118010.0,0.36847101]
[1753885538484,0.06495942,118020.0,118010.0,0.36847094]
[1753885538698,0.44309669,118020.0,118010.0,0.35999716]
[1753885539144,0.44309916,118020.0,118010.0,0.35999716]
[1753885539366,0.44310252,118020.0,118010.0,0.36199716]
[1753885541227,0.06496525,118020.0,118010.0,0.47189516]
[1753885541685,0.06496525,118020.0,118010.0,0.48036858]
[1753885542398,0.19316396,118020.0,118010.0,0.48036858]
[1753885542866,0.19316396,118020.0,118010.0,0.61120858]
[1753885543308,0.18523497,118020.0,118010.0,0.61120858]
[1753885543761,0.18523497,118020.0,118010.0,0.61020858]
[1753885544471,0.18523497,118020.0,118010.0,0.60920858]
[1753885544935,0.18523497,118020.0,118010.0,0.61220858]
[1753885545402,0.18523497,118020.0,118010.0,0.61520858]
[1753885551630,0.15,118020.0,118010.0,0.61520858]
[1753885553205,0.15,118020.0,118010.0,0.95520858]
[1753885558341,0.1497968,118020.0,118010.0,0.95520858]
[1753885560609,0.1497968,118020.0,118010.0,0.95504858]
[1753885565402,0.71986205,118020.0,118010.0,0.0904773]
[1753885565618,0.80928009,118020.0,118010.0,0.0904773]
[1753885565827,0.97027004,118020.0,118010.0,0.006]
[1753885566042,0.94871315,118020.0,118010.0,0.006]
[1753885566291,1.1181766,118020.0,118010.0,0.006]
[1753885566492,0.94024066,118020.0,118010.0,0.13692]
[1753885566700,1.10970346,118020.0,118010.0,0.13392]
[1753885566957,0.94024066,118020.0,118010.0,0.13392]
[1753885567165,0.94024066,118020.0,118010.0,0.13592]
[1753885567370,0.94024066,118020.0,118010.0,0.13292]
[1753885567614,0.86390485,118020.0,118010.0,0.13292]
[1753885567815,0.87237777,118020.0,118010.0,0.003]
[1753885568018,0.88085076,118020.0,118010.0,0.003]
[1753885568257,0.86390449,118020.0,118010.0,0.002]
[1753885568459,0.88085033,118020.0,118010.0,0.002]
[1753885568706,0.87237734,118020.0,118010.0,0.004]
[1753885568918,0.8725788,118020.0,118010.0,0.004]
[1753885569140,0.88105165,118020.0,118010.0,0.004]
[1753885569364,0.85311415,118020.0,118010.0,0.004]
[1753885569603,0.87005949,118020.0,118010.0,0.004]
[1753885569819,0.87853234,118020.0,118010.0,0.004]
[1753885570501,0.88700533,118020.0,118010.0,0.004]
[1753885570939,0.87853284,118020.0,118010.0,0.004]
[1753885572837,0.87005985,118020.0,118010.0,0.004]
[1753885573269,0.87853284,118020.0,118010.0,0.004]
[1753885573504,1.05646878,118020.0,118010.0,0.004]
[1753885573723,0.87853284,118020.0,118010.0,0.004]
[1753885574000,1.03952308,118020.0,118010.0,0.004]
[1753885574251,1.02257745,118020.0,118010.0,0.004]
[1753885574995,1.02257745,118020.0,118010.0,0.002]
[1753885575439,1.02257745,118020.0,118010.0,0.001]
[1753885576132,0.861587,118020.0,118010.0,0.001]
[1753885576357,0.86993999,118020.0,118010.0,0.001]
[1753885576607,0.85299429,118020.0,118010.0,0.001]
[1753885576837,0.85834714,118020.0,118010.0,0.001]
[1753885577086,0.52766166,118020.0,118010.0,0.17254716]
[1753885577323,0.1472768,118020.0,118010.0,0.59172516]
[1753885577560,0.1472768,118020.0,118010.0,0.43546446]
[1753885577811,0.52568166,118020.0,118010.0,0.58337181]
[1753885578056,0.64655166,118020.0,118010.0,0.001]
[1753885578296,0.72791685,118020.0,118010.0,0.001]
[1753885578567,0.74486283,118020.0,118010.0,0.001]
[1753885578806,0.73638977,118020.0,118010.0,0.001]
[1753885579039,0.72791685,118020.0,118010.0,0.001]
[1753885579990,0.73638963,118020.0,118010.0,0.001]
[1753885580212,0.7363897,118020.0,118010.0,0.001]
[1753885580424,0.8673897,118020.0,118010.0,0.001]
[1753885580673,0.85891685,118020.0,118010.0,0.001]
[1753885581153,0.65865166,118020.0,118010.0,0.28562716]
[1753885581429,0.65865166,118020.0,118010.0,0.11911]
[1753885581714,0.72699685,118020.0,118010.0,0.13196]
[1753885581934,0.73859977,118020.0,118010.0,0.13196]
[1753885582193,0.73012685,118020.0,118010.0,0.13196]
[1753885582733,0.74707255,118020.0,118010.0,0.13196]
[1753885582998,0.73012685,118020.0,118010.0,0.13196]
[1753885583250,0.73012678,118020.0,118010.0,0.13196]
[1753885583500,0.73859956,118020.0,118010.0,0.13196]
[1753885583756,0.73012678,118020.0,118010.0,0.001]
[1753885583989,0.73859956,118020.0,118010.0,0.001]
[1753885584940,0.9080633,118020.0,118010.0,0.001]
[1753885585687,0.89959052,118020.0,118010.0,0.001]
[1753885586143,1.23959052,118020.0,118010.0,0.001]
[1753885586352,1.24553808,118020.0,118010.0,0.001]
[1753885587031,1.37051052,118020.0,118010.0,0.001]
[1753885587728,0.00847392,118000.0,117990.0,0.13102553]
[1753885587960,0.40382692,118000.0,117990.0,0.21763283]
[1753885588176,0.41427128,118000.0,117990.0,0.33334283]
[1753885588831,0.03586642,118000.0,117990.0,0.33334283]
[1753885589046,0.03586627,118000.0,117990.0,0.33334283]
[1753885589327,0.53425394,118000.0,117990.0,0.33228283]
[1753885589760,0.41439394,118000.0,117990.0,0.33228283]
[1753885590534,0.42286808,118000.0,117990.0,0.33228283]
[1753885590955,0.42286852,118000.0,117990.0,0.33228283]
[1753885591186,0.40591988,118000.0,117990.0,0.33228283]
[1753885591409,0.41439416,118000.0,117990.0,0.33228283]
[1753885591877,0.41439452,118000.0,117990.0,0.33228283]
[1753885592105,0.68679798,118000.0,117990.0,0.13298553]
[1753885592329,0.71939798,118000.0,117990.0,0.13298553]
[1753885592547,0.71939798,118000.0,117990.0,0.00414553]
[1753885592767,0.74162362,118000.0,117990.0,0.00414553]
[1753885593236,0.74461362,118000.0,117990.0,0.00414553]
[1753885593462,0.51267358,118000.0,117990.0,0.00414553]
[1753885593738,0.73302919,118000.0,117990.0,0.00414553]
[1753885593963,1.07302919,118000.0,117990.0,0.00414553]
[1753885594855,0.90353767,118000.0,117990.0,0.00627553]
[1753885595079,0.90353767,118000.0,117990.0,0.12198553]
[1753885595080,0.71852767,118000.0,117990.0,0.12198553]
[1753885595320,0.85784159,118000.0,117990.0,0.12198553]
[1753885595735,0.84936767,118000.0,117990.0,0.12198553]
[1753885595949,0.85784159,118000.0,117990.0,0.12198553]
[1753885596405,0.84936767,118000.0,117990.0,0.12198553]
[1753885596635,0.85784174,118000.0,117990.0,0.12198553]
[1753885596867,0.84936767,118000.0,117990.0,0.12198553]
[1753885597090,0.97955167,118000.0,117990.0,0.00933553]
[1753885597339,0.98802588,118000.0,117990.0,0.00414553]
[1753885597605,0.98802581,118000.0,117990.0,0.00414553]
[1753885598050,1.17446611,118000.0,117990.0,0.00414553]
[1753885598288,1.59724564,118000.0,117990.0,0.00414553]
[1753885598522,1.70033196,118000.0,117990.0,0.00414553]
[1753885598780,1.7470115,118000.0,117990.0,0.00414553]
[1753885599028,1.73009321,118000.0,117990.0,0.00414553]
[1753885599239,1.93009321,118000.0,117990.0,0.00414553]
[1753885599483,1.93009321,118000.0,117990.0,0.00014553]
[1753885599957,1.93009321,118000.0,117990.0,0.00114553]
[1753885600185,1.93009261,118000.0,117990.0,0.00114553]
[1753885600414,1.93009261,118000.0,117990.0,0.00014553]
[1753885600668,1.93109261,118000.0,117990.0,0.00014553]
[1753885600880,1.93146019,118000.0,117990.0,0.00014553]
[1753885601095,1.93146107,118000.0,117990.0,0.00014553]
[1753885602176,1.93145356,118000.0,117990.0,0.00014553]
[1753885602670,1.35164166,118000.0,117990.0,0.00014553]
[1753885602888,1.35164166,118000.0,117990.0,0.11798553]
[1753885602889,0.86828256,118000.0,117990.0,0.11798553]
[1753885603121,0.53599417,118000.0,117990.0,0.11798553]
[1753885603342,0.87599417,118000.0,117990.0,0.11798553]
[1753885604001,1.05990774,118000.0,117990.0,0.11798553]
[1753885604223,1.05990832,118000.0,117990.0,0.11798553]
[1753885604440,1.07576873,118000.0,117990.0,0.11798553]
[1753885604664,1.0757685,118000.0,117990.0,0.11798553]
[1753885604887,1.08369933,118000.0,117990.0,0.11798553]
[1753885605108,0.89725881,118000.0,117990.0,0.11798553]
[1753885605561,0.88031053,118000.0,117990.0,0.18098553]
[1753885605781,0.03073863,118000.0,117990.0,0.35049142]
[1753885606454,0.40943053,118000.0,117990.0,0.35049142]
[1753885607059,0.40943053,118000.0,117990.0,0.48129142]
[1753885607262,0.40942825,118000.0,117990.0,0.48129142]
[1753885607672,0.40348067,118000.0,117990.0,0.48129142]
[1753885607880,0.40942875,118000.0,117990.0,0.48129142]
[1753885608552,0.40942875,118000.0,117990.0,0.31178553]
[1753885608725,0.41790267,118000.0,117990.0,0.11798553]
[1753885608958,0.40942875,118000.0,117990.0,0.30254142]
[1753885609148,0.41790267,118000.0,117990.0,0.24874553]
[1753885609350,0.42637674,118000.0,117990.0,0.31124553]
[1753885609916,0.40942875,118000.0,117990.0,0.48075142]
[1753885610416,0.40942875,118000.0,117990.0,0.48922671]
[1753885610727,0.40150049,118000.0,117990.0,0.48075142]
[1753885610944,0.40150641,118000.0,117990.0,0.48075142]
[1753885611167,0.3796919,118000.0,117990.0,0.48075142]
[1753885611385,0.001,118000.0,117990.0,0.48075142]
[1753885611816,0.001,118000.0,117990.0,0.48922671]
[1753885612017,0.001,118000.0,117990.0,0.50617693]
[1753885612202,0.3786919,118000.0,117990.0,0.50617693]
[1753885612487,0.1472768,118020.0,118000.0,0.23217988]
[1753885612703,0.1472768,118020.0,118010.0,0.19559]
[1753885612704,0.17703076,118020.0,118010.0,0.19559]
[1753885612893,0.17703076,118020.0,118010.0,0.48077716]
[1753885613145,0.55572266,118020.0,118010.0,0.48077716]
[1753885613605,0.56419515,118020.0,118010.0,0.3113]
[1753885614026,0.55572266,118020.0,118010.0,0.3113]
[1753885614674,0.55572266,118020.0,118010.0,0.48177716]
[1753885614895,0.5259687,118020.0,118010.0,0.48177716]
[1753885615553,0.5259687,118020.0,118010.0,0.49025101]
[1753885615990,0.55138681,118020.0,118010.0,0.11884]
[1753885616219,0.55138681,118020.0,118010.0,0.001]
[1753885616220,0.84251026,118020.0,118010.0,0.001]
[1753885616433,0.87291026,118020.0,118010.0,0.001]
[1753885616671,0.86443756,118020.0,118010.0,0.001]
[1753885616883,0.5259687,118020.0,118010.0,0.19143]
[1753885617094,0.53444119,118020.0,118010.0,0.19143]
[1753885617539,0.6566887,118020.0,118010.0,0.36090716]
[1753885617752,0.5259687,118020.0,118010.0,0.36090716]
[1753885617962,0.5259687,118020.0,118010.0,0.19143]
[1753885618386,0.5259687,118020.0,118010.0,0.36090716]
[1753885618596,0.5259687,118020.0,118010.0,0.50857465]
[1753885618830,0.5259687,118020.0,118010.0,0.49162716]
[1753885619499,0.5259687,118020.0,118010.0,0.50857451]
[1753885619921,0.5259687,118020.0,118010.0,0.50010101]
[1753885620127,0.5259687,118020.0,118010.0,0.49162716]
[1753885620347,0.5259687,118020.0,118010.0,0.32215]
[1753885620853,0.84251004,118020.0,118010.0,0.001]
[1753885621061,0.69499284,118020.0,118010.0,0.001]
[1753885621278,0.77499337,118020.0,118010.0,0.001]
[1753885621495,0.59705751,118020.0,118010.0,0.001]
[1753885621727,0.45845203,118020.0,118010.0,0.29880716]
[1753885621943,0.59764459,118020.0,118010.0,0.19333]
[1753885622159,0.59764452,118020.0,118010.0,0.19333]
[1753885622379,0.79193893,118020.0,118010.0,0.001]
[1753885622587,0.61400299,118020.0,118010.0,0.001]
[1753885622812,0.62247605,118020.0,118010.0,0.001]
[1753885623031,0.77495557,118020.0,118010.0,0.001]
[1753885623465,0.60549277,118020.0,118010.0,0.001]
[1753885623732,0.60549361,118020.0,118010.0,0.001]
[1753885624179,0.61396667,118020.0,118010.0,0.001]
[1753885624645,0.60549361,118020.0,118010.0,0.001]
[1753885624837,0.59702069,118020.0,118010.0,0.001]
[1753885625086,0.59702069,118020.0,118010.0,0.00313]
[1753885625087,0.47721069,118020.0,118010.0,0.00313]
[1753885625321,0.47721069,118020.0,118010.0,0.00615]
[1753885625547,0.48568361,118020.0,118010.0,0.00615]
[1753885625772,0.48568361,118020.0,118010.0,0.12933]
[1753885626203,0.6636194,118020.0,118010.0,0.12933]
[1753885626424,0.66361998,118020.0,118010.0,0.00615]